[Event "Cracovia Festival-A 2023"]
[Site "Krakow"]
[Date "2024.01.04"]
[Round "9.1"]
[White "Keinanen, Toivo"]
[Black "Gumularz, Szymon"]
[Result "1/2-1/2"]
[ECO "E01"]
[WhiteElo "2522"]
[BlackElo "2576"]
[Annotator "TA"]
[PlyCount "240"]
[EventDate "2023.12.24"]
[EventType "swiss"]
[EventCountry "POL"]
[SourceTitle "playchess.com"]
[Source "ChessBase"]
[SourceQuality "1"]
[TimeControl "40/5400+30:1800+30"]

{[%evp 45,240,37,49,50,35,0,0,-45,-45,-45,-47,-41,-44,-55,-55,-61,-57,-58,-32,-41,-39,-101,-48,-72,-58,-65,-23,-10,0,0,0,0,0,0,0,0,0,0,0,0,0,0,0,0,0,0,0,0,0,0,0,0,0,0,0,0,0,0,0,0,0,0,0,0,0,0,0,0,0,0,0,0,0,0,0,-46,-52,-54,0,0,0,-65,-76,-72,0,0,0,0,0,-8,0,-8,-8,-14,0,0,0,0,0,0,0,0,0,0,0,0,0,0,19,19,66,66,66,66,66,66,66,19,19,19,19,19,19,19,19,19,19,13,6,0,13,0,13,0,19,0,19,19,19,19,19,19,19,19,19,19,19,19,19,19,19,19,19,19,19,19,19,19,19,19,19,19,19,0,19,19,19,19,19,19,19,19,19,13,13,0,19,19,19,19,19,14,19,0,0,0,0,0,0,0,0,0,0,0,0,0,0]} 1. d4 {[%emt 0:03:48]} Nf6 {[%emt 0:03:12]} 2. c4 {[%emt 0:00:06]} e6 {[%emt 0:00:04]} 3. g3 {[%emt 0:00:04]} d5 {[%emt 0:00:38]} 4. Bg2 {[%emt 0:00:04]} Bb4+ {[%emt 0:00:08]} 5. Bd2 {[%emt 0:00:21]} Be7 {[%emt 0:00:06]} 6. Nf3 {[%emt 0:00:07]} O-O {[%emt 0:00:14]} 7. O-O {[%emt 0:00:22]} c6 {[%emt 0:03:31]} 8. Qc2 {[%emt 0:00:38]} Nbd7 {[%emt 0:00:09]} 9. Rd1 {[%emt 0:00:39]} a5 {[%emt 0:00:26]} 10. Bf4 {[%emt 0:00:14]} h6 {[%emt 0:00:18]} 11. Ne5 {[%emt 0:01:32]} a4 {[%emt 0:00:14]} 12. Nc3 {[%emt 0:08:53]} a3 {[%emt 0:00:08]} 13. b3 {[%emt 0:00:57]} g5 {[%emt 0:00:05]} 14. Nxd7 {[%emt 0:06:51]} Nxd7 {[%emt 0:01:34]} 15. Be3 {[%emt 0:10:28]} f5 {[%emt 0:00:28]} 16. f3 {[%emt 0:00:17]} Nf6 {[%emt 0:12:57]} 17. Bf2 {[%emt 0:03:46]} Qe8 {[%emt 0:00:05]} 18. h3 {[%emt 0:05:58]} f4 {[%emt 0:18:01]} 19. g4 {[%emt 0:04:29]} b5 {[%emt 0:00:20]} 20. c5 {[%emt 0:05:58]} Nd7 {[%emt 0:10:25]} 21. e4 {[%emt 0:02:02]} fxe3 {[%emt 0:00:42]} 22. Bxe3 {[%emt 0:00:33]} e5 {[%emt 0:01:41]} 23. Ne2 {[%emt 0:06:49]} exd4 {[%emt 0:17:35]} 24. Bxd4 {[%emt 0:07:12]} Bf6 {[%emt 0:00:04]} 25. Re1 {[%emt 0:01:35]} Ne5 {[%emt 0:03:41]} 26. Kh1 {[%emt 0:11:56]} Qg6 {[%emt 0:00:49]} 27. Qxg6+ {[%emt 0:05:43]} Nxg6 {[%emt 0:00:03]} 28. Bxf6 {[%emt 0:01:53]} Rxf6 {[%emt 0:00:10]} 29. Nd4 {[%emt 0:00:52]} Bd7 {[%emt 0:01:30]} 30. Re3 {[%emt 0:02:06]} Rf4 {[%emt 0:04:43]} 31. Rd1 {[%emt 0:02:15]} Re8 {[%emt 0:00:15]} 32. Rxe8+ {[%emt 0:00:42]} Bxe8 {[%emt 0:00:02]} 33. Nc2 {[%emt 0:02:41]} (33. Bf1 $15) 33... b4 {[%emt 0:10:06]} (33... Ne5 $17 34. Nd4 Bg6) 34. Kg1 $15 {[%emt 0:01:12]} Ne5 {[%emt 0:05:49]} 35. Nd4 {[%emt 0:04:00]} Bg6 {[%emt 0:01:29]} 36. Kf2 {[%emt 0:00:30]} Rf6 {[%emt 0:04:59]} 37. Ke3 {[%emt 0:00:39]} Kf7 {[%emt 0:00:04]} 38. Bf1 {[%emt 0:00:16]} Ke7 {[%emt 0:00:17]} 39. Be2 {[%emt 0:00:20]} Kd7 {[%emt 0:01:36]} 40. Rh1 {[%emt 0:00:00]} Rf8 {[%emt 0:00:00]} 41. h4 {[%emt 0:14:19]} Re8 {[%emt 0:03:36]} 42. Kd2 {[%emt 0:01:01]} Ra8 {[%emt 0:00:15]} 43. Ke3 {[%emt 0:02:27]} Rf8 {[%emt 0:02:27]} 44. h5 {[%emt 0:01:49]} Bh7 {[%emt 0:00:39]} 45. Rf1 {[%emt 0:01:07]} Rf4 {[%emt 0:00:25]} 46. Rd1 {[%emt 0:00:19]} Kc8 {[%emt 0:01:53]} 47. Ba6+ {[%emt 0:01:01]} Kb8 {[%emt 0:00:40]} 48. Be2 {[%emt 0:00:02]} Kb7 {[%emt 0:00:20]} 49. Rg1 {[%emt 0:00:44]} Rf8 {[%emt 0:04:47]} 50. Rc1 {[%emt 0:00:52]} Re8 {[%emt 0:00:56]} 51. Kd2 $1 {[%emt 0:00:07]} Kc7 {[%emt 0:00:17]} 52. Rf1 {[%emt 0:01:14]} Kd7 {[%emt 0:00:47]} 53. Rc1 {[%emt 0:02:08]} Rf8 {[%emt 0:00:12]} 54. Ke3 {[%emt 0:00:40]} Rf4 {[%emt 0:00:04]} 55. Rg1 {[%emt 0:00:38]} Nf7 {[%emt 0:00:14]} 56. Re1 {[%emt 0:03:45]} Nd8 {[%emt 0:05:20]} 57. Bd3 {[%emt 0:00:56]} Bxd3 {[%emt 0:00:08]} 58. Kxd3 {[%emt 0:00:04]} Rf6 {[%emt 0:00:03]} 59. Nf5 {[%emt 0:01:39]} Ne6 {[%emt 0:00:14]} 60. Kc2 {[%emt 0:03:22]} (60. Kd2 $11 {should be considered.}) 60... Kd8 {[%emt 0:00:15]} 61. Kd3 {[%emt 0:01:27]} Ke8 {[%emt 0:07:20]} (61... Nf4+ $1 $15 62. Kd4 Nxh5) 62. Kc2 {[%emt 0:02:24]} Kf8 {[%emt 0:00:18]} 63. Rd1 {[%emt 0:00:31]} (63. Kd3 $11) 63... Nxc5 $15 {[%emt 0:00:27]} 64. Rd4 {[%emt 0:00:05] [#]} Re6 {[%emt 0:01:39]} ({Black should play} 64... Na6 $1 $17) 65. Rxb4 $11 {[%emt 0:00:34]} Re2+ {[%emt 0:00:05]} 66. Kc3 $1 {[%emt 0:00:12]} Rxa2 {[%emt 0:01:20]} 67. Rb8+ $1 {[%emt 0:00:52]} Kf7 {[%emt 0:00:03]} 68. Ra8 {[%emt 0:00:49]} Ra1 {[%emt 0:00:25]} 69. Nxh6+ {[%emt 0:00:26]} Ke6 {[%emt 0:02:21]} 70. Nf5 {[%emt 0:00:25]} Rc1+ {[%emt 0:00:08]} 71. Kd2 {[%emt 0:00:20]} ({Wrong is} 71. Kb4 $2 Nd3+ 72. Ka5 a2 73. Nd4+ Kd6 $19) 71... Nxb3+ {[%emt 0:00:04]} 72. Kd3 {[%emt 0:00:51]} c5 {[%emt 0:00:32]} 73. h6 {[%emt 0:00:31]} c4+ {[%emt 0:00:26]} 74. Ke3 {[%emt 0:00:25]} Rh1 {[%emt 0:03:19]} 75. Rxa3 {[%emt 0:00:17]} Ke5 {[%emt 0:05:59]} 76. Ra8 {[%emt 0:00:18]} d4+ {[%emt 0:00:04]} 77. Nxd4 $1 {[%emt 0:00:43]} Nxd4 {[%emt 0:01:37]} (77... Rxh6 $1 $11 {deserves consideration.} 78. Re8+ Kd6) 78. Ra5+ $14 {[%emt 0:00:05]} Kf6 $1 {[%emt 0:00:12]} 79. Kxd4 {[%emt 0:00:03]} Kg6 {[%emt 0:00:19]} 80. Ra6+ Kh7 {[%emt 0:00:04]} 81. Kxc4 {[%emt 0:01:13]} (81. Ke5 $14) 81... Rd1 $11 {[%emt 0:00:33]} 82. Rf6 {[%emt 0:00:50]} Rd2 {[%emt 0:00:08]} 83. Kc5 {[%emt 0:00:20]} Rd1 {[%emt 0:00:49]} 84. Kc6 {[%emt 0:00:41]} Rd3 {[%emt 0:00:16]} 85. Kc7 {[%emt 0:00:06]} Rd1 {[%emt 0:00:23]} 86. Kc8 {[%emt 0:00:19]} Rd3 {[%emt 0:00:18]} 87. Kc7 {[%emt 0:00:01]} Rd1 {[%emt 0:00:05]} 88. Kc6 {[%emt 0:00:06]} Rd3 {[%emt 0:00:24]} 89. Kc5 {[%emt 0:01:36]} Rd1 {[%emt 0:00:21]} 90. Kc4 {[%emt 0:00:31]} Rd2 {[%emt 0:00:12]} 91. Kc3 {[%emt 0:00:20]} Rd1 {[%emt 0:00:10]} 92. Kc2 {[%emt 0:01:02]} Rd8 {[%emt 0:01:15]} 93. Re6 {[%emt 0:00:59]} Rf8 {[%emt 0:00:25]} 94. Re3 {[%emt 0:00:03]} Kxh6 {[%emt 0:00:09]} 95. Kd3 {[%emt 0:00:00]} Rd8+ {[%emt 0:00:35]} 96. Ke2 {[%emt 0:00:04]} Rd6 {[%emt 0:00:15]} 97. Re8 {[%emt 0:00:13]} Ra6 {[%emt 0:00:28]} 98. Ke3 {[%emt 0:00:16]} Kg6 {[%emt 0:00:12]} 99. Rg8+ {[%emt 0:01:03]} Kf6 {[%emt 0:00:06]} 100. Rd8 {[%emt 0:00:08]} Kg6 {[%emt 0:01:06]} 101. Rd5 {[%emt 0:00:47]} Re6+ {[%emt 0:01:27]} 102. Kd4 {[%emt 0:00:10]} Rf6 {[%emt 0:00:22]} 103. Ke4 {[%emt 0:00:13]} Re6+ {[%emt 0:00:18]} 104. Re5 {[%emt 0:00:05]} Ra6 {[%emt 0:00:05]} (104... Kf6 $5 {[%cal Re6e5]} 105. Rxe6+ Kxe6 $11) 105. Rc5 {[%emt 0:00:41]} Re6+ {[%emt 0:01:08]} 106. Kd4 {[%emt 0:01:18]} Rf6 {[%emt 0:01:22]} 107. Rc3 {[%emt 0:00:04]} Rf4+ {[%emt 0:00:17]} 108. Ke3 {[%emt 0:00:02]} Rf6 {[%emt 0:00:13]} 109. Ke4 {[%emt 0:00:57]} Rf4+ {[%emt 0:00:04]} 110. Ke3 {[%emt 0:00:25]} Rf6 {[%emt 0:00:04]} 111. Rc4 {[%emt 0:00:08]} Re6+ {[%emt 0:00:15]} 112. Re4 {[%emt 0:00:31]} Ra6 {[%emt 0:00:09]} 113. Kd4 {[%emt 0:00:26]} Rd6+ {[%emt 0:01:19]} 114. Ke5 {[%emt 0:00:25]} Rd3 {[%emt 0:00:36]} 115. f4 {[%emt 0:00:10]} gxf4 {[%emt 0:00:04]} 116. Kxf4 {[%emt 0:00:04]} Rd6 {[%emt 0:00:11]} 117. Ke5 {[%emt 0:00:18]} Ra6 {[%emt 0:00:06]} 118. Rd4 {[%emt 0:00:01]} Kg5 {[%emt 0:00:06]} 119. Rd6 {[%emt 0:00:02]} Rxd6 {[%emt 0:00:03]} 120. Kxd6 {[%emt 0:00:04]} Kxg4 {[%emt 0:00:03]} 1/2-1/2

[Event "Cracovia Festival-A 2023"]
[Site "Krakow"]
[Date "2024.01.04"]
[Round "9.2"]
[White "Pacan-Milej, Kosma"]
[Black "Akbas, Umut Ata"]
[Result "1-0"]
[ECO "E44"]
[WhiteElo "2425"]
[BlackElo "2446"]
[Annotator "RC"]
[PlyCount "67"]
[EventDate "2023.12.24"]
[EventType "swiss"]
[EventCountry "POL"]
[SourceTitle "playchess.com"]
[Source "ChessBase"]
[SourceQuality "1"]
[TimeControl "40/5400+30:1800+30"]

1. d4 {[%emt 0:06:13]} Nf6 {[%emt 0:04:54]} 2. c4 {[%emt 0:00:03]} e6 {[%emt 0:00:11]} 3. Nc3 {[%emt 0:00:06]} Bb4 {[%emt 0:00:07]} 4. e3 {[%emt 0:00:12]} b6 {[%emt 0:00:05]} 5. Nge2 {[%emt 0:01:24]} c5 {[%emt 0:00:32]} 6. a3 {[%emt 0:00:44]} Ba5 {[%emt 0:00:08]} 7. Rb1 {[%emt 0:01:31]} Na6 {[%emt 0:00:08]} 8. g3 {[%emt 0:03:43]} Ne4 {[%emt 0:22:46]} 9. Bg2 {[%emt 0:04:08]} Bb7 {[%emt 0:00:27]} 10. d5 {[%emt 0:01:09]} Bxc3+ {[%emt 0:02:29]} 11. Nxc3 {[%emt 0:05:21]} Nxc3 {[%emt 0:00:09]} 12. bxc3 {[%emt 0:00:01]} e5 {[%emt 0:02:15]} 13. O-O {[%emt 0:00:05]} O-O {[%emt 0:00:51]} 14. f4 {[%emt 0:07:19]} exf4 {[%emt 0:09:11]} 15. Rxf4 {[%emt 0:01:24]} d6 {[%emt 0:07:34]} 16. Qh5 {[%emt 0:06:40]} g6 {[%emt 0:06:27]} 17. Qh6 {[%emt 0:02:29]} f6 {[%emt 0:00:13]} 18. e4 {[%emt 0:04:00]} Rf7 {[%emt 0:10:16]} 19. g4 {[%emt 0:03:47]} Qe7 {[%emt 0:07:04]} 20. g5 {[%emt 0:10:31]} Raf8 {[%emt 0:01:49]} 21. gxf6 {[%emt 0:09:52]} Rxf6 {[%emt 0:02:15]} 22. Rxf6 {[%emt 0:01:17]} Qxf6 {[%emt 0:00:38]} 23. Bd2 {[%emt 0:01:44]} Nb8 {[%emt 0:06:12]} 24. Rf1 {[%emt 0:03:06]} Qe7 {[%emt 0:02:51]} 25. Bh3 {[%emt 0:01:14]} Rxf1+ {[%emt 0:04:17]} 26. Kxf1 {[%emt 0:00:02]} Qf8+ {[%emt 0:00:41]} 27. Qf4 {[%emt 0:02:17]} h6 {[%emt 0:02:38]} 28. Be6+ {[%emt 0:13:34]} Kg7 {[%emt 0:00:12]} 29. Ke1 {[%emt 0:00:40]} g5 {[%emt 0:02:43]} 30. Qg3 {[%emt 0:00:03]} Ba6 {[%emt 0:01:06]} 31. Bxg5 {[%emt 0:00:11]} hxg5 {[%emt 0:00:19]} 32. Qxg5+ {[%emt 0:00:03]} Kh8 {[%emt 0:00:11]} 33. Bf5 {[%emt 0:00:34]} Bc8 {[%emt 0:01:28]} 34. Qh5+ {[%emt 0:00:06]} 1-0

[Event "Cracovia Festival-A 2023"]
[Site "Krakow"]
[Date "2024.01.04"]
[Round "9.3"]
[White "Bogdanov, Egor"]
[Black "Janik, Igor"]
[Result "1-0"]
[ECO "B30"]
[WhiteElo "2394"]
[BlackElo "2514"]
[Annotator "TA"]
[PlyCount "105"]
[EventDate "2023.12.24"]
[EventType "swiss"]
[EventCountry "POL"]
[SourceTitle "playchess.com"]
[Source "ChessBase"]
[SourceQuality "1"]
[TimeControl "40/5400+30:1800+30"]

{[%evp 20,105,11,20,40,30,38,29,111,111,114,125,184,175,174,181,178,164,160,166,168,154,195,133,134,69,85,67,94,93,91,86,461,46,64,72,91,102,156,156,166,160,146,157,232,43,213,45,64,70,98,104,134,95,96,86,158,68,148,141,333,339,314,334,295,436,429,427,384,416,549,516,487,458,728,737,750,617,498,295,1105,717,1087,1006,12841,12842,12842,12843]} 1. e4 {[%emt 0:00:01][%cal Be2e4,Be4e5][%mdl 32]} c5 {[%emt 0:00:36]} 2. Nf3 {[%emt 0:01:18]} Nc6 {[%emt 0:00:11]} 3. c3 {[%emt 0:02:52]} Nf6 {[%emt 0:00:12]} 4. e5 {[%emt 0:00:05]} Nd5 {[%emt 0:00:02]} 5. d4 {[%emt 0:00:12]} cxd4 {[%emt 0:00:06]} 6. Bc4 {[%emt 0:05:23]} Nb6 {[%emt 0:00:30]} 7. Bb3 {[%emt 0:00:07]} d5 {[%emt 0:00:15]} 8. exd6 {[%emt 0:00:11]} Qxd6 {[%emt 0:00:07]} 9. O-O {[%emt 0:00:31]} Be6 {[%emt 0:00:33]} 10. Na3 {[%emt 0:01:36]} Bxb3 {[%emt 0:18:20]} 11. Qxb3 {[%emt 0:11:30]} Qd7 {[%emt 0:13:00] B22: Sicilian: 2 c3.} 12. Rd1 {[%emt 0:21:16][%cal Rf3d4]} e6 {[%emt 0:21:41]} 13. Nxd4 {[%emt 0:01:39]} (13. cxd4 Bxa3 14. Qxa3 Qe7 $11) 13... Nxd4 {[%emt 0:03:37]} (13... Qc8 $11 {remains equal.}) 14. Rxd4 $16 {[%emt 0:00:12]} Qc6 {[%emt 0:00:05]} 15. Nc4 $1 {[%emt 0:01:17]} Bc5 {[%emt 0:02:34]} (15... Be7 $16) 16. Ne5 $18 {[%emt 0:02:45]} Qc8 {[%emt 0:02:47]} 17. Qb5+ {[%emt 0:00:51]} Ke7 {[%emt 0:01:45]} 18. Rg4 {[%emt 0:04:58] [#]} (18. Bg5+ f6 19. Rg4 (19. Rf4 Bd6 $15 {[%mdl 64] Pin}) 19... a6 $11) 18... Kf8 $146 {[%emt 0:04:32]} ({Predecessor:} 18... g6 19. Bf4 a6 20. Qd3 f6 21. b4 fxe5 22. Bxe5 Bxf2+ 23. Kxf2 Rf8+ 24. Kg1 Qc6 {½-½ Markovic,M (2505)-Ilincic,Z (2470) Kladovo zt 1993 (1)}) 19. Be3 {[%emt 0:07:38]} Bxe3 {[%emt 0:01:36]} 20. fxe3 {[%emt 0:00:02][%cal Bf2e3,Be3e4][%mdl 32]} Qc7 {[%emt 0:03:08]} 21. Rf1 {[%emt 0:07:04]} (21. Rd1 $1 $18 {Hoping for Nd7+.} Kg8 22. Nd7) 21... f6 $16 {[%emt 0:02:59]} 22. Nc4 {[%emt 0:08:38] White is much more active. The black rooks are badly placed.} (22. a4 $16) 22... Nd5 $14 {[%emt 0:04:26]} 23. e4 {[%emt 0:01:23]} a6 {[%emt 0:01:49]} 24. Qb3 {[%emt 0:00:47]} h5 {[%emt 0:01:13]} 25. Rg3 {[%emt 0:04:25]} Nf4 {[%emt 0:00:25][%mdl 8192]} (25... h4 $16 26. Rg4 Ne7) 26. Rgf3 $2 {[%emt 0:05:03]} (26. Rxf4 $18 b5 27. Qb4+ Kg8 28. Nd6) 26... e5 {[%emt 0:00:55]} 27. g3 {[%emt 0:03:10]} Nh3+ {[%emt 0:00:39]} (27... Qc5+ $2 28. Kh1 Ne6 29. Nb6 $18) 28. Kg2 {[%emt 0:00:17]} Ng5 {[%emt 0:00:04]} (28... b5 $142) 29. Rf5 $1 $16 {[%emt 0:01:06][%csl LRe5,LRg5]} Nf7 {[%emt 0:00:44]} 30. Nb6 {[%emt 0:01:58]} Rd8 {[%emt 0:05:55]} 31. Nd5 {[%emt 0:00:01]} Qc6 {[%emt 0:00:05]} (31... Rxd5 $16 32. Qxd5 Ke7) 32. Qb4+ $2 {[%emt 0:02:18]} (32. Nxf6 $1 $18 gxf6 33. Rxf6 Qxe4+ 34. Kg1 Qe3+ 35. Kh1 Qe4+ 36. R1f3) 32... Qd6 $2 {[%emt 0:02:16]} (32... Rd6 $14) 33. Qc4 $2 {[%emt 0:01:07]} (33. Qxb7 $18 {[%cal Rd5f6] Threatens to win with Nxf6!} Rh6 34. h4) 33... Rh6 {[%emt 0:01:45]} 34. h4 $36 {[%emt 0:01:12][%mdl 2048] White has some pressure.} Qc6 {[%emt 0:02:07]} 35. Qe2 {[%emt 0:00:39]} Rd6 {[%emt 0:00:19]} 36. Rxh5 {[%emt 0:01:19]} Rxh5 {[%emt 0:00:08]} 37. Qxh5 {[%emt 0:00:01]} Qc4 {[%emt 0:00:17][%csl LRa2,LRe4]} 38. Qf5 {[%emt 0:00:50]} (38. Qf3 $16) 38... Nh6 {[%emt 0:01:32] Prevents g4} ({Black should try} 38... Qxa2 $14 39. Qc8+ Nd8) 39. Qf3 $1 {[%emt 0:01:17]} (39. Qxe5 $2 {too greedy.} Qxf1+ 40. Kxf1 fxe5 $19) 39... Qxa2 $2 {[%emt 0:01:11] [#]} (39... Qc8 $16 40. b3 Ng4) 40. g4 $1 $18 {[%emt 0:00:00][%cal Bg3g4,Bg4g5][%mdl 32]} Qxb2+ {[%emt 0:00:00]} 41. Rf2 {[%emt 0:03:06]} Qb5 {[%emt 0:03:49]} 42. g5 {[%emt 0:00:51]} Ng8 {[%emt 0:00:41] [#]} 43. h5 $1 {[%emt 0:02:43]} Qe8 {[%emt 0:06:26]} 44. c4 {[%emt 0:07:44]} Qe6 {[%emt 0:04:43] [#]} 45. h6 $1 {[%emt 0:03:45][%mdl 576] Deflection} gxh6 {[%emt 0:00:11]} 46. gxf6 {[%emt 0:02:32] And now Qg3 would win.} ({Inferior is} 46. Nxf6 Nxf6 47. gxf6 Qg8+ 48. Kh2 Qg5 $11) 46... Rd7 {[%emt 0:02:54]} (46... b6 $142 47. Kg1 Qf7) 47. Qa3+ {[%emt 0:02:44]} Ke8 {[%emt 0:01:34]} 48. Qg3 {[%emt 0:01:00][%cal Of6f7]} Kf8 {[%emt 0:00:49]} 49. Rf5 {[%emt 0:02:20]} Qc6 $2 {[%emt 0:03:47]} (49... Qd6 50. Rxe5 Nxf6 51. Nxf6 Qd2+ 52. Kh3 (52. Kh1 $2 Qd1+ 53. Kh2 Rd2+ 54. Kh3 Qh1+ 55. Kg4 Rg2 $19) 52... Rd3) 50. Qxe5 {[%emt 0:03:10] White is clearly winning.} a5 {[%emt 0:06:12] Black is weak on the dark squares} 51. Rf3 {[%emt 0:03:44] aiming for Qb8+.} a4 {[%emt 0:01:36]} 52. Rg3 {White wants to mate with Qb8+.} Qd6 {[#] Prevents Qb8+.} 53. f7 $1 {[%emt 0:02:01][%mdl 576] Decoy. An entertaining game by Bogdanov.   Weighted Error Value: White=0.41/Black=0.46} 1-0

[Event "Cracovia Festival-A 2023"]
[Site "Krakow"]
[Date "2024.01.04"]
[Round "9.4"]
[White "Puranik, Abhimanyu"]
[Black "Aakash Sharadchandra, Dalvi"]
[Result "1-0"]
[ECO "D31"]
[WhiteElo "2627"]
[BlackElo "2130"]
[Annotator "TA"]
[PlyCount "89"]
[EventDate "2023.12.24"]
[EventType "swiss"]
[EventCountry "POL"]
[SourceTitle "playchess.com"]
[Source "ChessBase"]
[SourceQuality "1"]
[TimeControl "40/5400+30:1800+30"]

{[%evp 9,89,25,17,17,23,18,22,17,28,19,27,22,27,31,37,36,29,32,47,34,31,20,57,52,60,31,63,66,66,65,79,68,73,75,93,92,132,132,133,131,117,132,137,86,82,90,93,86,117,114,100,97,143,112,147,55,88,35,39,0,0,0,0,0,0,0,209,207,181,178,154,129,540,536,941,508,1514,1516,1949,1477,12840,12840]} 1. c4 {[%emt 0:00:02]} e6 {[%emt 0:09:16]} 2. Nc3 {[%emt 0:00:11]} d5 {[%emt 0:00:05]} 3. d4 {[%emt 0:00:15]} a6 {[%emt 0:00:16]} 4. cxd5 {[%emt 0:01:10]} exd5 {[%emt 0:00:03]} 5. Bf4 {[%emt 0:00:18]} Nf6 {[%emt 0:00:30]} 6. e3 {[%emt 0:00:15] D31: Queen's Gambit Declined: Semi-Slav without ...Nf6 (+ Marshall Gambit and Noteboom) and Exchange Variation lines without ...Nf6.} Bd6 {[%emt 0:01:26]} 7. Bg5 {[%emt 0:02:33]} c6 {[%emt 0:02:03]} 8. Bd3 {[%emt 0:00:26] The position is equal.} Nbd7 {[%emt 0:03:01]} 9. Nf3 $5 {[%emt 0:04:04][%mdl 4] [#] An interesting side line.} h6 $146 {[%emt 0:01:49]} ({Predecessor:} 9... O-O 10. Qc2 h6 11. Bh4 Be7 12. O-O-O Re8 13. Bg3 Bb4 14. Kb1 Qa5 15. Nd2 Bxc3 16. Qxc3 Qxc3 17. bxc3 c5 18. Rhe1 b5 19. f3 Nb6 {1-0 Grebnev,A (2500)-Triapishko,A (2499) Khanty-Mansiysk TOP 28 Rapid GP 2023 (1)}) 10. Bf4 {[%emt 0:05:05]} Qe7 {[%emt 0:08:52]} 11. O-O {[%emt 0:01:11]} O-O {[%emt 0:00:10]} 12. Qc2 {[%emt 0:01:36]} Re8 {[%emt 0:01:28]} 13. Rac1 {[%emt 0:04:32]} Nf8 {[%emt 0:10:32]} 14. Bxd6 {[%emt 0:04:08]} Qxd6 {[%emt 0:00:03]} 15. Na4 {[%emt 0:01:14]} Be6 {[%emt 0:12:13]} 16. Nc5 {[%emt 0:02:36]} Re7 {[%emt 0:00:13]} 17. h3 {[%emt 0:03:08]} Rae8 {[%emt 0:01:44]} 18. b4 {[%emt 0:06:52]} Bc8 {[%emt 0:02:44]} 19. a4 {[%emt 0:00:15]} N8d7 {[%emt 0:09:25]} 20. b5 {[%emt 0:02:08]} cxb5 {[%emt 0:03:08]} 21. axb5 {[%emt 0:02:04]} a5 {[%emt 0:00:18]} 22. Nxd7 {[%emt 0:00:08]} Nxd7 {[%emt 0:00:38]} 23. Qa2 {[%emt 0:06:04]} b6 {[%emt 0:02:51]} 24. Rc6 {[%emt 0:00:20][%mdl 64] Deflection} Qb8 {[%emt 0:00:08]} 25. Qxd5 {[%emt 0:11:03]} Bb7 {[%emt 0:01:01] [#]} 26. Qb3 {[%emt 0:01:45]} Bxc6 $16 {[%emt 0:01:48]} 27. bxc6 {[%emt 0:00:04]} Nf6 {[%emt 0:01:03][%cal Bd7f6,Bf6e8,Be8d6][%mdl 32] Black is weak on the light squares} 28. Ne5 {[%emt 0:00:48][%mdl 1024] White has strong compensation.} Qc7 {[%emt 0:04:10]} 29. Rb1 {[%emt 0:03:27]} Rb8 {[%emt 0:00:52]} 30. Qb5 {[%emt 0:01:44]} Qd8 {[%emt 0:08:13]} (30... Kf8 $142) 31. Bc4 {[%emt 0:01:56]} Ne8 {[%emt 0:01:42]} 32. Ba2 {[%emt 0:04:19]} (32. Qa4 $16) 32... Nd6 $14 {[%emt 0:01:05]} 33. Qd5 {[%emt 0:00:28]} (33. Qd3 $16) 33... b5 {[%emt 0:01:28]} 34. e4 {[%emt 0:05:35]} Qc7 {[%emt 0:01:50]} 35. Nd7 {[%emt 0:05:33]} Rc8 {[%emt 0:03:08]} 36. Nb6 $1 $36 {[%emt 0:05:36][%mdl 2112] Deflection. White is pushing. Really sharp!} Qxb6 {[%emt 0:04:14]} 37. Qxd6 {[%emt 0:00:03]} Rxe4 {[%emt 0:00:08] [#]} (37... Ra7 $11 {and Black is okay.} 38. d5 b4) 38. Bxf7+ $1 $18 {[%emt 0:00:30][%cal Ba2f7,Bf7h5,Bh5g4][%mdl 608] Decoy} Kh8 {[%emt 0:00:14] [#]} 39. d5 {[%emt 0:03:54] aiming for Bg6.} Re2 {[%emt 0:01:02] [#]} 40. Qf4 {[%emt 0:00:00] Rc1 would be deadly. Active counter play!} b4 $2 {[%emt 0:00:00][%mdl 8192] A mistake that costs the game.} (40... Rf8 $16 41. c7 Rxf2 {[%mdl 64] Decoy} 42. Qxf2 Qxf2+ {[%mdl 64] Remove Defender} 43. Kxf2 Rxf7+ 44. Ke3 Rxc7) 41. Bh5 {[%emt 0:12:39] White is clearly winning.} Ra2 {[%emt 0:12:49]} 42. Bg4 {[%emt 0:02:39]} Ra8 {[%emt 0:02:08]} (42... Rg8 $142 43. c7 Rxf2 44. Qxf2 Qxc7) 43. Re1 {[%emt 0:10:13]} Qc5 {[%emt 0:12:48]} 44. c7 {[%emt 0:01:49] Black must now prevent d6.} b3 {[%emt 0:03:29]} 45. d6 {[%emt 0:01:28] A cool game by Puranik.   Weighted Error Value: White=0.30/Black=0.33} ({Worse is} 45. c8=B Rxc8 46. Bxc8 Qxc8 $11) 1-0